[Event "Dalheimers Hus Rapid Open"]
[Site "Dalheimers Hus, Slottsskogsgatan 12, Gothenburg, Sweden"]
[Date "2024.04.14"]
[Round "7.11"]
[White "Kallen, Jonas"]
[Black "Kadunic, Admir"]
[Result "1-0"]
[TimeControl "15 minutes + 5 seconds per move from move one."]
[WhiteFideId "1712896"]
[BlackFideId "1773542"]
[WhiteElo "2021"]
[BlackElo "1865"]

1. d4 {[%clk 00:15:05]} {[%emt 00:00:05]} Nf6 {[%clk 00:15:03]} {[%emt
00:00:08]} 2. Bf4 {[%clk 00:15:08]} {[%emt 00:00:01]} d5 {[%clk 00:15:00]}
{[%emt 00:00:09]} 3. e3 {[%clk 00:15:11]} {[%emt 00:00:02]} e6 {[%clk
00:14:10]} {[%emt 00:00:54]} 4. Nf3 {[%clk 00:15:10]} {[%emt 00:00:06]} Be7
{[%clk 00:14:11]} {[%emt 00:00:05]} 5. Nbd2 {[%clk 00:14:55]} {[%emt 00:00:20]}
O-O {[%clk 00:14:11]} {[%emt 00:00:05]} 6. Bd3 {[%clk 00:14:41]} {[%emt
00:00:18]} c5 {[%clk 00:14:13]} {[%emt 00:00:03]} 7. c3 {[%clk 00:14:44]}
{[%emt 00:00:02]} Nbd7 {[%clk 00:14:12]} {[%emt 00:00:06]} 8. Ne5 {[%clk
00:14:00]} {[%emt 00:00:49]} Re8 {[%clk 00:13:41]} {[%emt 00:00:37]} 9. g4
{[%clk 00:12:59]} {[%emt 00:01:06]} Nxe5 {[%clk 00:13:40]} {[%emt 00:00:06]} 10.
dxe5 {[%clk 00:12:11]} {[%emt 00:00:52]} Nd7 {[%clk 00:13:39]} {[%emt
00:00:06]} 11. Qc2 {[%clk 00:11:37]} {[%emt 00:00:39]} Nf8 {[%clk 00:13:26]}
{[%emt 00:00:18]} 12. Bg3 {[%clk 00:11:12]} {[%emt 00:00:30]} d4 {[%clk
00:13:30]} {[%emt 00:00:02]} 13. O-O-O {[%clk 00:10:13]} {[%emt 00:01:03]} dxc3
{[%clk 00:13:23]} {[%emt 00:00:13]} 14. Qxc3 {[%clk 00:10:11]} {[%emt
00:00:06]} Bd7 {[%clk 00:13:10]} {[%emt 00:00:18]} 15. Ne4 {[%clk 00:09:30]}
{[%emt 00:00:47]} Qb6 {[%clk 00:12:26]} {[%emt 00:00:48]} 16. h4 {[%clk
00:08:26]} {[%emt 00:01:09]} Bc6 {[%clk 00:12:27]} {[%emt 00:00:05]} 17. f4
{[%clk 00:08:02]} {[%emt 00:00:28]} Rac8 {[%clk 00:12:21]} {[%emt 00:00:12]} 18.
Rhf1 {[%clk 00:08:05]} {[%emt 00:00:03]} c4 {[%clk 00:12:23]} {[%emt 00:00:03]}
19. Bc2 {[%clk 00:08:04]} {[%emt 00:00:05]} Bb4 {[%clk 00:12:03]} {[%emt
00:00:26]} 20. Qd4 {[%clk 00:07:54]} {[%emt 00:00:14]} Qa6 {[%clk 00:11:32]}
{[%emt 00:00:36]} 21. a3 {[%clk 00:07:33]} {[%emt 00:00:27]} Bxe4 {[%clk
00:10:17]} {[%emt 00:01:20]} 22. Qxe4 {[%clk 00:07:19]} {[%emt 00:00:19]} Be7
{[%clk 00:09:17]} {[%emt 00:01:05]} 23. Be1 {[%clk 00:06:25]} {[%emt 00:00:59]}
c3 {[%clk 00:07:40]} {[%emt 00:01:41]} 24. Bxc3 {[%clk 00:05:59]} {[%emt
00:00:31]} Bxa3 {[%clk 00:07:43]} {[%emt 00:00:03]} 25. Qd3 {[%clk 00:05:03]}
{[%emt 00:01:00]} Qc6 {[%clk 00:06:56]} {[%emt 00:00:53]} 26. Bd4 {[%clk
00:04:25]} {[%emt 00:00:43]} Bc5 {[%clk 00:06:34]} {[%emt 00:00:27]} 27. Bxc5
{[%clk 00:03:46]} {[%emt 00:00:43]} Qxc5 {[%clk 00:06:38]} {[%emt 00:00:01]} 28.
Rf2 {[%clk 00:03:45]} {[%emt 00:00:07]} b5 {[%clk 00:06:28]} {[%emt 00:00:15]}
29. Qd4 {[%clk 00:03:20]} {[%emt 00:00:30]} Qc7 {[%clk 00:06:15]} {[%emt
00:00:18]} 30. Rfd2 {[%clk 00:03:12]} {[%emt 00:00:13]} a5 {[%clk 00:06:13]}
{[%emt 00:00:07]} 31. Kb1 {[%clk 00:03:02]} {[%emt 00:00:14]} a4 {[%clk
00:05:55]} {[%emt 00:00:24]} 32. Qb4 {[%clk 00:02:39]} {[%emt 00:00:26]} Rb8
{[%clk 00:05:19]} {[%emt 00:00:43]} 33. Be4 {[%clk 00:02:23]} {[%emt 00:00:20]}
Qb6 {[%clk 00:05:18]} {[%emt 00:00:07]} 34. Qd4 {[%clk 00:02:20]} {[%emt
00:00:07]} Qa5 {[%clk 00:05:15]} {[%emt 00:00:08]} 35. f5 {[%clk 00:01:47]}
{[%emt 00:00:40]} b4 {[%clk 00:05:18]} {[%emt 00:00:01]} 36. f6 {[%clk
00:01:43]} {[%emt 00:00:09]} Ng6 {[%clk 00:05:13]} {[%emt 00:00:10]} 37. Bxg6
{[%clk 00:01:41]} {[%emt 00:00:07]} hxg6 {[%clk 00:05:17]} 38. fxg7 {[%clk
00:01:43]} {[%emt 00:00:03]} a3 {[%clk 00:05:17]} {[%emt 00:00:05]} 39. b3
{[%clk 00:01:46]} {[%emt 00:00:02]} Kxg7 {[%clk 00:05:18]} {[%emt 00:00:04]} 40.
h5 {[%clk 00:01:48]} {[%emt 00:00:02]} Rh8 {[%clk 00:05:12]} {[%emt 00:00:12]}
41. hxg6 {[%clk 00:01:49]} {[%emt 00:00:04]} fxg6 {[%clk 00:04:32]} {[%emt
00:00:45]} 42. Qd7+ {[%clk 00:01:49]} {[%emt 00:00:04]} Kh6 {[%clk 00:04:28]}
{[%emt 00:00:09]} 43. Rh2+ {[%clk 00:01:44]} {[%emt 00:00:10]} Kg5 {[%clk
00:04:26]} {[%emt 00:00:07]} 44. Qe7+ {[%clk 00:01:48]} {[%emt 00:00:01]} Kxg4
{[%clk 00:04:30]} {[%emt 00:00:02]} 45. Qxe6+ {[%clk 00:01:48]} {[%emt
00:00:05]} Kf3 {[%clk 00:04:29]} {[%emt 00:00:06]} 46. Qc6+ {[%clk 00:01:38]}
{[%emt 00:00:13]} Kxe3 {[%clk 00:04:18]} {[%emt 00:00:18]} 47. Re1+ {[%clk
00:01:38]} {[%emt 00:00:05]} Kf4 {[%clk 00:04:20]} {[%emt 00:00:03]} 48. Qf6+
{[%clk 00:01:37]} {[%emt 00:00:05]} Kg4 {[%clk 00:04:22]} {[%emt 00:00:04]} 49.
Rg1# {[%clk 00:01:40]} {[%emt 00:00:02]} 1-0

[Event "Dalheimers Hus Rapid Open"]
[Site "Dalheimers Hus, Slottsskogsgatan 12, Gothenburg, Sweden"]
[Date "2024.04.14"]
[Round "8.1"]
[White "Seo, Jung Min"]
[Black "Johansson, Linus"]
[Result "0-1"]
[TimeControl "15 minutes + 5 seconds per move from move one."]
[WhiteTitle "IM"]
[BlackTitle "IM"]
[WhiteFideId "1734687"]
[BlackFideId "1711113"]
[WhiteElo "2450"]
[BlackElo "2427"]

1. e4 {[%clk 00:15:10]} {[%emt 00:00:53]} c5 {[%clk 00:15:08]} {[%emt
00:00:02]} 2. Nf3 {[%clk 00:15:14]} d6 {[%clk 00:15:13]} 3. d4 {[%clk
00:15:14]} {[%emt 00:00:05]} cxd4 {[%clk 00:15:17]} 4. Nxd4 {[%clk 00:15:18]}
{[%emt 00:00:01]} Nf6 {[%clk 00:15:20]} {[%emt 00:00:01]} 5. Nc3 {[%clk
00:15:23]} a6 {[%clk 00:15:24]} 6. h3 {[%clk 00:15:20]} {[%emt 00:00:07]} e5
{[%clk 00:15:11]} {[%emt 00:00:18]} 7. Nb3 {[%clk 00:15:23]} {[%emt 00:00:02]}
Be7 {[%clk 00:14:04]} {[%emt 00:01:12]} 8. g4 {[%clk 00:15:25]} {[%emt
00:00:03]} Be6 {[%clk 00:13:58]} {[%emt 00:00:11]} 9. g5 {[%clk 00:15:21]}
{[%emt 00:00:09]} Nfd7 {[%clk 00:14:01]} {[%emt 00:00:02]} 10. h4 {[%clk
00:15:23]} {[%emt 00:00:03]} Nb6 {[%clk 00:13:17]} {[%emt 00:00:50]} 11. Be3
{[%clk 00:14:18]} {[%emt 00:01:09]} N8d7 {[%clk 00:13:11]} {[%emt 00:00:11]} 12.
Qd2 {[%clk 00:14:11]} {[%emt 00:00:13]} Rc8 {[%clk 00:13:07]} {[%emt 00:00:08]}
13. O-O-O {[%clk 00:14:12]} {[%emt 00:00:04]} Nc4 {[%clk 00:12:51]} {[%emt
00:00:21]} 14. Bxc4 {[%clk 00:14:13]} {[%emt 00:00:04]} Rxc4 {[%clk 00:12:54]}
{[%emt 00:00:02]} 15. f4 {[%clk 00:13:38]} {[%emt 00:00:39]} exf4 {[%clk
00:12:39]} {[%emt 00:00:20]} 16. Bxf4 {[%clk 00:13:42]} Ne5 {[%clk 00:12:34]}
{[%emt 00:00:10]} 17. Nd4 {[%clk 00:13:11]} {[%emt 00:00:35]} O-O {[%clk
00:12:20]} {[%emt 00:00:20]} 18. Nf5 {[%clk 00:12:30]} {[%emt 00:00:46]} Re8
{[%clk 00:10:01]} {[%emt 00:02:24]} 19. Bxe5 {[%clk 00:10:30]} {[%emt
00:02:05]} Bxf5 {[%clk 00:09:39]} {[%emt 00:00:27]} 20. Bxg7 {[%clk 00:10:08]}
{[%emt 00:00:26]} Bxe4 {[%clk 00:09:11]} {[%emt 00:00:33]} 21. Nxe4 {[%clk
00:10:09]} {[%emt 00:00:04]} Rxe4 {[%clk 00:09:14]} {[%emt 00:00:02]} 22. Bc3
{[%clk 00:10:08]} {[%emt 00:00:06]} Bf8 {[%clk 00:08:21]} {[%emt 00:00:58]} 23.
h5 {[%clk 00:08:43]} {[%emt 00:01:30]} R8e6 {[%clk 00:07:29]} {[%emt 00:00:58]}
24. g6 {[%clk 00:06:51]} {[%emt 00:01:57]} h6 {[%clk 00:06:28]} {[%emt
00:01:06]} 25. gxf7+ {[%clk 00:06:25]} {[%emt 00:00:31]} Kxf7 {[%clk 00:06:32]}
26. Rdf1+ {[%clk 00:06:01]} {[%emt 00:00:29]} Ke8 {[%clk 00:06:35]} {[%emt
00:00:02]} 27. Kb1 {[%clk 00:05:27]} {[%emt 00:00:38]} Be7 {[%clk 00:06:00]}
{[%emt 00:00:40]} 28. Rhg1 {[%clk 00:04:58]} {[%emt 00:00:34]} Bg5 {[%clk
00:06:00]} {[%emt 00:00:05]} 29. Qd5 {[%clk 00:04:48]} {[%emt 00:00:14]} Qe7
{[%clk 00:06:00]} {[%emt 00:00:06]} 30. a3 {[%clk 00:04:27]} {[%emt 00:00:26]}
Kd8 {[%clk 00:05:59]} {[%emt 00:00:06]} 31. Rf5 {[%clk 00:04:21]} {[%emt
00:00:11]} Qd7 {[%clk 00:05:03]} {[%emt 00:01:02]} 32. Rgf1 {[%clk 00:03:11]}
{[%emt 00:01:14]} Qc6 {[%clk 00:04:44]} {[%emt 00:00:24]} 33. Rf8+ {[%clk
00:01:45]} {[%emt 00:01:31]} Re8 {[%clk 00:04:06]} {[%emt 00:00:44]} 34. Qa5+
{[%clk 00:01:03]} {[%emt 00:00:47]} Kc8 {[%clk 00:03:45]} {[%emt 00:00:25]} 35.
R8f7 {[%clk 00:00:48]} {[%emt 00:00:20]} Qc5 {[%clk 00:03:25]} {[%emt
00:00:25]} 36. Rd1 {[%clk 00:00:18]} {[%emt 00:00:35]} Qxa5 {[%clk 00:02:48]}
{[%emt 00:00:42]} 37. Bxa5 {[%clk 00:00:22]} {[%emt 00:00:01]} R4e7 {[%clk
00:02:53]} 38. Rff1 {[%clk 00:00:12]} {[%emt 00:00:14]} Kd7 {[%clk 00:02:51]}
{[%emt 00:00:08]} 39. Bb4 {[%clk 00:00:16]} {[%emt 00:00:02]} Re6 {[%clk
00:02:54]} {[%emt 00:00:01]} 40. Rd5 {[%clk 00:00:14]} {[%emt 00:00:06]} Kc6
{[%clk 00:02:49]} {[%emt 00:00:10]} 41. Rfd1 {[%clk 00:00:10]} {[%emt
00:00:08]} Bf4 {[%clk 00:02:53]} {[%emt 00:00:02]} 42. Rf5 {[%clk 00:00:13]}
{[%emt 00:00:03]} Be5 {[%clk 00:02:49]} {[%emt 00:00:08]} 43. Bd2 {[%clk
00:00:15]} {[%emt 00:00:03]} Rg8 {[%clk 00:02:47]} {[%emt 00:00:07]} 44. Bc1
{[%clk 00:00:09]} {[%emt 00:00:12]} Rg2 {[%clk 00:02:45]} {[%emt 00:00:07]} 45.
Rh1 {[%clk 00:00:12]} {[%emt 00:00:02]} Bd4 {[%clk 00:02:41]} {[%emt 00:00:08]}
46. Rf7 {[%clk 00:00:12]} {[%emt 00:00:05]} Ree2 {[%clk 00:02:37]} {[%emt
00:00:09]} 47. c3 {[%clk 00:00:13]} {[%emt 00:00:04]} Be3 {[%clk 00:02:40]}
{[%emt 00:00:03]} 48. Bxe3 {[%clk 00:00:09]} {[%emt 00:00:08]} Rxe3 {[%clk
00:02:41]} {[%emt 00:00:04]} 49. Ka1 {[%clk 00:00:07]} {[%emt 00:00:08]} Ree2
{[%clk 00:02:40]} {[%emt 00:00:05]} 50. Rb1 {[%clk 00:00:11]} Re5 {[%clk
00:02:44]} {[%emt 00:00:01]} 51. Rh1 {[%clk 00:00:14]} {[%emt 00:00:02]} Rb5
{[%clk 00:02:38]} {[%emt 00:00:11]} 52. b4 {[%clk 00:00:09]} {[%emt 00:00:10]}
Rd5 {[%clk 00:02:28]} {[%emt 00:00:15]} 53. Rf6 {[%clk 00:00:11]} {[%emt
00:00:04]} Rdd2 {[%clk 00:02:30]} {[%emt 00:00:03]} 54. Rxh6 {[%clk 00:00:13]}
{[%emt 00:00:02]} Kb5 {[%clk 00:02:04]} {[%emt 00:00:31]} 0-1

[Event "Dalheimers Hus Rapid Open"]
[Site "Dalheimers Hus, Slottsskogsgatan 12, Gothenburg, Sweden"]
[Date "2024.04.14"]
[Round "8.2"]
[White "Hellers, Ferdinand"]
[Black "Storme, Isak"]
[Result "1/2-1/2"]
[TimeControl "15 minutes + 5 seconds per move from move one."]
[WhiteTitle "GM"]
[BlackTitle "IM"]
[WhiteFideId "1700022"]
[BlackFideId "1728113"]
[WhiteElo "2410"]
[BlackElo "2352"]

1. e4 {[%clk 00:15:06]} {[%emt 00:00:03]} e5 {[%clk 00:15:08]} {[%emt
00:00:03]} 2. Nf3 {[%clk 00:15:09]} {[%emt 00:00:02]} Nc6 {[%clk 00:15:11]}
{[%emt 00:00:03]} 3. Bb5 {[%clk 00:15:11]} {[%emt 00:00:02]} a6 {[%clk
00:15:03]} {[%emt 00:00:14]} 4. Ba4 {[%clk 00:15:14]} {[%emt 00:00:02]} Nf6
{[%clk 00:15:04]} {[%emt 00:00:03]} 5. O-O {[%clk 00:15:13]} {[%emt 00:00:06]}
Be7 {[%clk 00:15:06]} {[%emt 00:00:03]} 6. Re1 {[%clk 00:15:12]} {[%emt
00:00:06]} b5 {[%clk 00:15:09]} {[%emt 00:00:03]} 7. Bb3 {[%clk 00:15:14]}
{[%emt 00:00:02]} O-O {[%clk 00:15:09]} {[%emt 00:00:05]} 8. a4 {[%clk
00:14:51]} {[%emt 00:00:28]} b4 {[%clk 00:14:50]} {[%emt 00:00:24]} 9. d4
{[%clk 00:14:02]} {[%emt 00:00:54]} d6 {[%clk 00:14:50]} {[%emt 00:00:05]} 10.
dxe5 {[%clk 00:13:20]} {[%emt 00:00:47]} dxe5 {[%clk 00:14:31]} {[%emt
00:00:24]} 11. Nbd2 {[%clk 00:12:30]} {[%emt 00:00:56]} Bc5 {[%clk 00:13:45]}
{[%emt 00:00:49]} 12. Qe2 {[%clk 00:12:14]} {[%emt 00:00:21]} Qe7 {[%clk
00:12:17]} {[%emt 00:01:35]} 13. a5 {[%clk 00:07:11]} {[%emt 00:05:08]} Bg4
{[%clk 00:11:28]} {[%emt 00:00:53]} 14. c3 {[%clk 00:06:00]} {[%emt 00:01:16]}
h6 {[%clk 00:09:52]} {[%emt 00:01:41]} 15. h3 {[%clk 00:05:33]} {[%emt
00:00:32]} Be6 {[%clk 00:09:44]} {[%emt 00:00:13]} 16. Bc4 {[%clk 00:04:57]}
{[%emt 00:00:41]} bxc3 {[%clk 00:09:05]} {[%emt 00:00:44]} 17. bxc3 {[%clk
00:05:00]} {[%emt 00:00:02]} Bxc4 {[%clk 00:08:31]} {[%emt 00:00:39]} 18. Qxc4
{[%clk 00:04:52]} {[%emt 00:00:13]} Rfb8 {[%clk 00:07:30]} {[%emt 00:01:07]} 19.
Nb3 {[%clk 00:02:15]} {[%emt 00:02:41]} Rb5 {[%clk 00:07:19]} {[%emt 00:00:17]}
20. Be3 {[%clk 00:01:48]} {[%emt 00:00:31]} Bxe3 {[%clk 00:06:13]} {[%emt
00:01:12]} 21. Rxe3 {[%clk 00:01:52]} Qe6 {[%clk 00:05:58]} {[%emt 00:00:19]}
22. Qxe6 {[%clk 00:01:47]} {[%emt 00:00:10]} fxe6 {[%clk 00:06:01]} {[%emt
00:00:02]} 23. Nfd2 {[%clk 00:01:49]} {[%emt 00:00:03]} Rab8 {[%clk 00:05:34]}
{[%emt 00:00:33]} 24. Ra3 {[%clk 00:01:46]} {[%emt 00:00:08]} Rd8 {[%clk
00:05:10]} {[%emt 00:00:29]} 25. Kf1 {[%clk 00:01:37]} {[%emt 00:00:13]} Kf7
{[%clk 00:03:46]} {[%emt 00:01:28]} 26. Ke2 {[%clk 00:01:37]} {[%emt 00:00:06]}
Ke7 {[%clk 00:03:43]} {[%emt 00:00:09]} 27. Rd3 {[%clk 00:01:27]} {[%emt
00:00:15]} Rd6 {[%clk 00:02:30]} {[%emt 00:01:18]} 28. Nc4 {[%clk 00:01:13]}
{[%emt 00:00:19]} Nxe4 {[%clk 00:01:49]} {[%emt 00:00:46]} 29. Nxd6 {[%clk
00:01:11]} {[%emt 00:00:06]} cxd6 {[%clk 00:01:52]} {[%emt 00:00:03]} 30. f3
{[%clk 00:00:48]} {[%emt 00:00:28]} Nc5 {[%clk 00:01:31]} {[%emt 00:00:25]} 31.
Nxc5 {[%clk 00:00:50]} {[%emt 00:00:03]} Rxc5 {[%clk 00:01:34]} {[%emt
00:00:03]} 32. Rd2 {[%clk 00:00:41]} {[%emt 00:00:14]} Nxa5 {[%clk 00:01:09]}
{[%emt 00:00:30]} 33. Rda2 {[%clk 00:00:34]} {[%emt 00:00:11]} Nc6 {[%clk
00:01:06]} {[%emt 00:00:08]} 34. Rxa6 {[%clk 00:00:38]} {[%emt 00:00:01]} Rxc3
{[%clk 00:01:06]} {[%emt 00:00:06]} 35. Kd2 {[%clk 00:00:36]} {[%emt 00:00:06]}
Rc5 {[%clk 00:01:05]} {[%emt 00:00:06]} 36. Rb6 {[%clk 00:00:32]} {[%emt
00:00:09]} d5 {[%clk 00:00:42]} {[%emt 00:00:28]} 37. Rc2 {[%clk 00:00:23]}
{[%emt 00:00:13]} Rxc2+ {[%clk 00:00:43]} {[%emt 00:00:06]} 38. Kxc2 {[%clk
00:00:27]} Nd4+ {[%clk 00:00:42]} {[%emt 00:00:06]} 39. Kd3 {[%clk 00:00:31]}
{[%emt 00:00:02]} Kf6 {[%clk 00:00:36]} {[%emt 00:00:10]} 40. f4 {[%clk
00:00:34]} {[%emt 00:00:02]} Nf5 {[%clk 00:00:35]} {[%emt 00:00:06]} 41. fxe5+
{[%clk 00:00:38]} {[%emt 00:00:02]} Kxe5 {[%clk 00:00:38]} {[%emt 00:00:02]} 42.
Rb7 {[%clk 00:00:42]} Kf6 {[%clk 00:00:30]} {[%emt 00:00:13]} 43. Rd7 {[%clk
00:00:45]} {[%emt 00:00:02]} Nh4 {[%clk 00:00:28]} {[%emt 00:00:06]} 44. g4
{[%clk 00:00:39]} {[%emt 00:00:10]} Nf3 {[%clk 00:00:30]} {[%emt 00:00:04]} 45.
Ke3 {[%clk 00:00:37]} {[%emt 00:00:08]} Ng5 {[%clk 00:00:21]} {[%emt 00:00:14]}
46. h4 {[%clk 00:00:35]} {[%emt 00:00:06]} Nf7 {[%clk 00:00:22]} {[%emt
00:00:04]} 47. Ra7 {[%clk 00:00:31]} {[%emt 00:00:10]} g5 {[%clk 00:00:16]}
{[%emt 00:00:10]} 48. hxg5+ {[%clk 00:00:29]} {[%emt 00:00:08]} hxg5 {[%clk
00:00:19]} {[%emt 00:00:02]} 49. Kf3 {[%clk 00:00:28]} {[%emt 00:00:06]} Ne5+
{[%clk 00:00:21]} {[%emt 00:00:02]} 50. Kg3 {[%clk 00:00:31]} {[%emt 00:00:02]}
Nc4 {[%clk 00:00:19]} {[%emt 00:00:07]} 51. Kf3 {[%clk 00:00:27]} {[%emt
00:00:09]} Nd2+ {[%clk 00:00:21]} {[%emt 00:00:03]} 52. Ke3 {[%clk 00:00:28]}
{[%emt 00:00:05]} Ne4 {[%clk 00:00:19]} {[%emt 00:00:07]} 53. Ra8 {[%clk
00:00:19]} {[%emt 00:00:15]} Ke5 {[%clk 00:00:16]} {[%emt 00:00:07]} 54. Rf8
{[%clk 00:00:17]} {[%emt 00:00:06]} d4+ {[%clk 00:00:10]} {[%emt 00:00:12]} 55.
Kd3 {[%clk 00:00:13]} {[%emt 00:00:08]} Nc5+ {[%clk 00:00:09]} {[%emt
00:00:07]} 56. Kc4 {[%clk 00:00:15]} {[%emt 00:00:02]} Nb7 {[%clk 00:00:12]}
{[%emt 00:00:02]} 57. Rg8 {[%clk 00:00:13]} {[%emt 00:00:07]} Nd6+ {[%clk
00:00:14]} {[%emt 00:00:03]} 58. Kd3 {[%clk 00:00:16]} {[%emt 00:00:02]} Ne4
{[%clk 00:00:13]} {[%emt 00:00:07]} 59. Rf8 {[%clk 00:00:13]} {[%emt 00:00:08]}
Nf6 {[%clk 00:00:08]} {[%emt 00:00:10]} 60. Rd8 {[%clk 00:00:12]} {[%emt
00:00:05]} Nd5 {[%clk 00:00:09]} {[%emt 00:00:04]} 61. Rg8 {[%clk 00:00:12]}
{[%emt 00:00:06]} Nf4+ {[%clk 00:00:07]} {[%emt 00:00:07]} 62. Kc4 {[%clk
00:00:13]} {[%emt 00:00:03]} Nh3 {[%clk 00:00:10]} {[%emt 00:00:03]} 63. Rg6
{[%clk 00:00:12]} {[%emt 00:00:06]} Kf4 {[%clk 00:00:08]} {[%emt 00:00:06]} 64.
Rxe6 {[%clk 00:00:14]} {[%emt 00:00:04]} Kxg4 {[%clk 00:00:11]} {[%emt
00:00:01]} 65. Kxd4 {[%clk 00:00:16]} {[%emt 00:00:03]} Nf4 {[%clk 00:00:15]}
{[%emt 00:00:02]} 66. Re8 {[%clk 00:00:20]} Kf3 {[%clk 00:00:17]} {[%emt
00:00:03]} 67. Rf8 {[%clk 00:00:22]} {[%emt 00:00:02]} g4 {[%clk 00:00:21]}
{[%emt 00:00:02]} 68. Ke5 {[%clk 00:00:26]} g3 {[%clk 00:00:18]} {[%emt
00:00:07]} 69. Rxf4+ {[%clk 00:00:30]} {[%emt 00:00:02]} Ke3 {[%clk 00:00:20]}
{[%emt 00:00:03]} 70. Rf1 {[%clk 00:00:20]} {[%emt 00:00:15]} g2 {[%clk
00:00:23]} {[%emt 00:00:02]} 71. Ra1 {[%clk 00:00:24]} {[%emt 00:00:01]} Kf2
{[%clk 00:00:26]} 72. Kf4 {[%clk 00:00:24]} {[%emt 00:00:05]} g1=Q {[%clk
00:00:29]} {[%emt 00:00:03]} 73. Rxg1 {[%clk 00:00:27]} Kxg1 {[%clk 00:00:32]}
{[%emt 00:00:02]} 74. Ke4 {[%clk 00:00:00]} 1/2-1/2

[Event "Dalheimers Hus Rapid Open"]
[Site "Dalheimers Hus, Slottsskogsgatan 12, Gothenburg, Sweden"]
[Date "2024.04.14"]
[Round "8.3"]
[White "Olsson, William"]
[Black "Sigurgeirson, Brjann"]
[Result "1-0"]
[TimeControl "15 minutes + 5 seconds per move from move one."]
[WhiteTitle "FM"]
[WhiteFideId "1741721"]
[BlackFideId "1712497"]
[WhiteElo "2159"]
[BlackElo "2103"]

1. c4 {[%clk 00:15:08]} {[%emt 00:00:02]} Nf6 {[%clk 00:15:05]} {[%emt
00:00:05]} 2. Nc3 {[%clk 00:15:06]} {[%emt 00:00:09]} c5 {[%clk 00:15:08]} 3.
g3 {[%clk 00:15:09]} {[%emt 00:00:02]} d6 {[%clk 00:15:12]} {[%emt 00:00:01]} 4.
Bg2 {[%clk 00:15:12]} {[%emt 00:00:02]} g6 {[%clk 00:15:15]} {[%emt 00:00:02]}
5. a3 {[%clk 00:15:09]} {[%emt 00:00:08]} Bg7 {[%clk 00:15:18]} {[%emt
00:00:02]} 6. b4 {[%clk 00:15:09]} {[%emt 00:00:05]} cxb4 {[%clk 00:14:22]}
{[%emt 00:01:01]} 7. axb4 {[%clk 00:15:13]} O-O {[%clk 00:14:25]} {[%emt
00:00:02]} 8. Rb1 {[%clk 00:14:16]} {[%emt 00:01:02]} Nc6 {[%clk 00:13:58]}
{[%emt 00:00:32]} 9. Nh3 {[%clk 00:14:07]} {[%emt 00:00:14]} e5 {[%clk
00:11:03]} {[%emt 00:03:00]} 10. Ng5 {[%clk 00:13:23]} {[%emt 00:00:48]} Bf5
{[%clk 00:10:02]} {[%emt 00:01:07]} 11. d3 {[%clk 00:13:24]} {[%emt 00:00:04]}
h6 {[%clk 00:08:47]} {[%emt 00:01:21]} 12. Nf3 {[%clk 00:13:14]} {[%emt
00:00:14]} Re8 {[%clk 00:08:15]} {[%emt 00:00:37]} 13. Nd2 {[%clk 00:12:53]}
{[%emt 00:00:26]} Rb8 {[%clk 00:07:36]} {[%emt 00:00:44]} 14. O-O {[%clk
00:12:35]} {[%emt 00:00:23]} Qd7 {[%clk 00:06:59]} {[%emt 00:00:42]} 15. Re1
{[%clk 00:12:37]} {[%emt 00:00:03]} Bh3 {[%clk 00:06:49]} {[%emt 00:00:14]} 16.
Bh1 {[%clk 00:12:40]} {[%emt 00:00:02]} Bg4 {[%clk 00:06:40]} {[%emt 00:00:14]}
17. Qb3 {[%clk 00:11:29]} {[%emt 00:01:15]} Nd4 {[%clk 00:06:22]} {[%emt
00:00:24]} 18. Qa2 {[%clk 00:11:33]} {[%emt 00:00:01]} a6 {[%clk 00:06:01]}
{[%emt 00:00:27]} 19. e3 {[%clk 00:10:59]} {[%emt 00:00:39]} Nc6 {[%clk
00:06:03]} {[%emt 00:00:03]} 20. b5 {[%clk 00:10:39]} {[%emt 00:00:24]} axb5
{[%clk 00:06:02]} {[%emt 00:00:07]} 21. Rxb5 {[%clk 00:10:43]} {[%emt
00:00:01]} Bf5 {[%clk 00:05:35]} {[%emt 00:00:31]} 22. Nde4 {[%clk 00:09:41]}
{[%emt 00:01:08]} Nxe4 {[%clk 00:05:09]} {[%emt 00:00:32]} 23. Nxe4 {[%clk
00:09:44]} Be6 {[%clk 00:04:57]} {[%emt 00:00:17]} 24. Ba3 {[%clk 00:09:17]}
{[%emt 00:00:32]} Ra8 {[%clk 00:04:59]} {[%emt 00:00:02]} 25. Qb2 {[%clk
00:08:50]} {[%emt 00:00:33]} Rxa3 {[%clk 00:02:14]} {[%emt 00:02:50]} 26. Qxa3
{[%clk 00:08:53]} {[%emt 00:00:02]} Rd8 {[%clk 00:01:14]} {[%emt 00:01:05]} 27.
Reb1 {[%clk 00:08:46]} {[%emt 00:00:11]} f5 {[%clk 00:00:30]} {[%emt 00:00:50]}
28. Rxb7 {[%clk 00:08:49]} {[%emt 00:00:02]} Qc8 {[%clk 00:00:24]} {[%emt
00:00:10]} 29. Nxd6 {[%clk 00:08:48]} {[%emt 00:00:06]} 1-0